fUST/lending_fUST_20240403
["ID","MTS","AMOUNT","RATE_DAILY","PERIOD"]
[321405818,1712149832790,-500.0,0.00034999,7]
[321405820,1712149832800,-500.0,0.00034999,7]
[321405822,1712149832809,-156.03373367,0.00034999,7]
[321405824,1712149832818,-500.0,0.00034999,7]
[321405826,1712149832827,-500.0,0.00034999,7]
[321405827,1712149832837,-500.0,0.00034999,7]
[321405830,1712149832848,-500.0,0.00034999,7]
[321405831,1712149832858,-500.0,0.00034999,7]
[321405834,1712149832868,-500.0,0.00034999,7]
[321405835,1712149832879,-500.0,0.00034999,7]
[321405838,1712149832891,-496.778112,0.00035,2]
[321405839,1712149832901,-496.778112,0.00035,2]
[321405841,1712149832912,-982.171664,0.00035,2]
[321405843,1712149832924,-982.171664,0.00035,2]
[321405846,1712149832938,-42581.55801773,0.00035,2]
[321405878,1712149838161,-500.0,0.00034998,7]
[321405879,1712149838171,-303.7621898,0.00034998,7]
[321405880,1712149838181,-193.46314425,0.00035,2]
[321405881,1712149838192,-2989.91514,0.00035,2]
[321405894,1712149840502,-42503.85283443,0.00035,2]
[321405914,1712149843340,-3463.10617214,0.00035,2]
[321405915,1712149843352,-781.03087013,0.00035,2]
[321405916,1712149843363,-1168.25938341,0.00035,2]
[321405974,1712151032461,-350.57372479,0.00033978,4]
[321405975,1712151032470,-4264.654966,0.00033979,2]
[321405976,1712151032479,-1512.983171,0.00034258,120]
[321405977,1712151032489,-254.31339584,0.000349,2]
[321405978,1712151032497,-210.36588987,0.000349,2]
[321405980,1712151032505,-210.36588986,0.000349,2]
[321405981,1712151032514,-208.84415989,0.00034998,4]
[321405983,1712151032521,-4899.16191308,0.00034998,4]
[321405985,1712151032530,-463.84548298,0.00034999,4]
[321405986,1712151032538,-235.29182211,0.00034999,7]
[321405987,1712151032546,-500.0,0.00034999,7]
[321405988,1712151032554,-29522.17946636,0.00035,60]
[321405990,1712151032564,-6327.61443795,0.00035,2]
[321405992,1712151032572,-306.0,0.00035185,2]
[321405994,1712151032581,-985.45028144,0.00035403,2]
[321405996,1712151032589,-308.127224,0.000355,2]
[321405997,1712151032597,-254.3133958,0.00035538,2]
[321405998,1712151032604,-202.17296299,0.00035623,4]
[321405999,1712151032614,-153.0,0.0003589,2]
[321406000,1712151032623,-153.0,0.0003589,2]
[321406001,1712151032633,-153.0,0.0003589,2]
[321406002,1712151032644,-153.0,0.0003589,2]
[321406003,1712151032656,-153.0,0.0003589,2]
[321406004,1712151032667,-153.0,0.0003589,2]
[321406005,1712151032679,-153.0,0.0003589,2]
[321406006,1712151032691,-153.0,0.0003589,2]
[321406007,1712151032703,-153.0,0.0003589,2]
[321406008,1712151032714,-153.0,0.0003589,2]
[321406009,1712151032725,-153.0,0.0003589,2]
[321406010,1712151032737,-153.0,0.0003589,2]
[321406011,1712151032747,-153.0,0.0003589,2]
[321406012,1712151032757,-150.0,0.000361,7]
[321406013,1712151032767,-254.3133958,0.00036175,2]
[321406014,1712151032942,-2248.1300057,0.00036498,4]
[321406015,1712151032957,-153.0,0.00036712,2]
[321406016,1712151032967,-153.0,0.00036712,2]
[321406017,1712151032977,-153.0,0.00036712,2]
[321406018,1712151032986,-254.3133958,0.00036813,2]
[321406019,1712151032996,-1640.64778037,0.00037,2]
[321406020,1712151033005,-166.44899975,0.00037156,2]
[321406021,1712151033015,-7130.9119204,0.00037303,2]
[321406022,1712151033025,-254.3133958,0.0003745,2]
[321406023,1712151033034,-151.0,0.00037496,2]
[321406024,1712151033044,-427.95859631,0.00037498,2]
[321406025,1712151033054,-238.07212372,0.00037498,4]
[321406026,1712151033063,-252.81959649,0.00037498,2]
[321406027,1712151033072,-202.01436772,0.00037498,4]
[321406028,1712151033081,-1137.43677143,0.00037498,4]
[321406029,1712151033090,-402.72579119,0.00037498,4]
[321406030,1712151033100,-1614.32375429,0.00037498,4]
[321406031,1712151033109,-520.87496,0.00037498,4]
[321406032,1712151033118,-946.27473759,0.00037498,4]
[321406033,1712151033127,-773.97092542,0.00037498,4]
[321406034,1712151033136,-151.0,0.00037498,2]
[321406035,1712151033145,-447.100301,0.00037498,2]
[321406036,1712151033154,-447.100301,0.00037498,2]
[321406037,1712151033163,-447.100301,0.00037498,2]
[321406038,1712151033172,-447.100301,0.00037498,2]
[321406039,1712151033183,-151.0,0.00037498,2]
[321406040,1712151033192,-151.0,0.00037498,2]
[321406041,1712151033202,-151.0,0.00037498,2]
[321406042,1712151033212,-151.0,0.00037498,2]
[321406043,1712151033221,-151.0,0.00037498,2]
[321406044,1712151033231,-151.0,0.00037498,2]
[321406045,1712151033241,-151.0,0.00037498,2]
[321406046,1712151033251,-151.0,0.00037498,2]
[321406047,1712151033268,-468.711152,0.00037498,2]
[321406048,1712151033278,-468.711152,0.00037498,2]
[321406049,1712151033287,-883.954497,0.00037498,2]
[321406050,1712151033296,-883.954497,0.00037498,2]
[321406051,1712151033306,-883.954497,0.00037498,2]
[321406052,1712151033315,-883.954497,0.00037498,2]
[321406053,1712151033324,-10000.0,0.000375,20]
[321406054,1712151033333,-151.0,0.000375,2]
[321406055,1712151033342,-447.100301,0.000375,2]
[321406056,1712151033351,-447.100301,0.000375,2]
[321406057,1712151033361,-151.0,0.000375,2]
[321406058,1712151033370,-151.0,0.000375,2]
[321406059,1712151033379,-151.0,0.000375,2]
[321406060,1712151033388,-151.0,0.000375,2]
[321406061,1712151033398,-151.0,0.000375,2]
[321406062,1712151033407,-151.0,0.000375,2]
[321406063,1712151033417,-151.0,0.000375,2]
[321406064,1712151033426,-151.0,0.000375,2]
[321406065,1712151033436,-185.685038,0.000375,2]
[321406066,1712151033446,-468.711152,0.000375,2]
[321406067,1712151033456,-468.711152,0.000375,2]
[321406068,1712151033465,-883.954497,0.000375,2]
[321406069,1712151033474,-883.954497,0.000375,2]
[321406070,1712151033484,-1604.40978756,0.00037534,4]
[321406071,1712151033494,-155.01395126,0.00037534,4]
[321406072,1712151033504,-151.0,0.00037534,2]
[321406073,1712151033514,-447.100301,0.00037534,2]
[321406074,1712151033523,-447.100301,0.00037534,2]
[321406075,1712151033535,-151.0,0.00037534,2]
[321406076,1712151033545,-151.0,0.00037534,2]
[321406077,1712151033555,-151.0,0.00037534,2]
[321406078,1712151033565,-151.0,0.00037534,2]
[321406079,1712151033575,-251.008626,0.00037534,2]
[321406080,1712151033584,-155.588823,0.00037534,2]
[321406081,1712151033594,-151.0,0.00037534,2]
[321406082,1712151033604,-468.711152,0.00037534,2]
[321406083,1712151033614,-468.711152,0.00037534,2]
[321406084,1712151033623,-542.26484409,0.00037534,2]
[321406113,1712151038493,-500.0,0.00037496,15]
[321406115,1712151038503,-359.7906435,0.00037496,15]
[321406117,1712151038512,-458.3793565,0.00037496,15]
[321406273,1712151043651,-41.6206435,0.00037496,15]
[321406274,1712151043661,-370.82457739,0.00037496,15]
[321406275,1712151043670,-500.0,0.00037496,15]
[321406276,1712151043680,-500.0,0.00037496,15]
[321406277,1712151043689,-612.27029359,0.00037496,15]
[321406278,1712151043698,-500.0,0.00037496,15]
[321406279,1712151043709,-16.36872715,0.00037496,15]
[321406316,1712151046524,-350.57372479,0.00037495,4]
[321406317,1712151046533,-483.63127285,0.00037496,15]
[321406318,1712151046542,-500.0,0.00037496,15]
[321406319,1712151046551,-500.0,0.00037496,15]
[321406320,1712151046561,-500.0,0.00037496,15]
[321406321,1712151046570,-500.0,0.00037496,15]
[321406322,1712151046579,-500.0,0.00037496,15]
[321406323,1712151046589,-500.0,0.00037496,15]
[321406324,1712151046599,-500.0,0.00037496,15]
[321406325,1712151046608,-151.0,0.00037498,2]
[321406326,1712151046617,-341.68965291,0.00037534,2]
[321406327,1712151046627,-883.954497,0.00037534,2]
[321406328,1712151046637,-3150.05133601,0.0003755,5]
[321406329,1712151046651,-447.100301,0.0003755,2]
[321406330,1712151046661,-447.100301,0.0003755,2]
[321406331,1712151046671,-153.0,0.00037616,2]
[321406332,1712151046683,-153.0,0.00037616,2]
[321406333,1712151046694,-153.0,0.00037616,2]
[321406334,1712151046703,-153.0,0.00037616,2]
[321406335,1712151046715,-153.0,0.00037616,2]
[321406336,1712151046726,-1500.0,0.000379,2]
[321406337,1712151046735,-184.10329178,0.00037999,4]
[321406338,1712151046745,-1002.0,0.00038,2]
[321406339,1712151046754,-300.0,0.00038,2]
[321406340,1712151046764,-3957.95650598,0.00038,2]
[321406341,1712151046774,-9158.278816,0.00038,2]
[321406342,1712151046784,-1630.44098444,0.00038,2]
[321406490,1712152243698,-257.16409251,0.00037056,4]
[321406492,1712152243707,-350.57372479,0.00037057,4]
[321406494,1712152243716,-1134.737378,0.00037058,120]
[321406496,1712152243727,-209.599386,0.00037114,2]
[321406498,1712152243736,-244.52483239,0.00037355,2]
[321406500,1712152243746,-152.76127004,0.00037828,7]
[321406501,1712152243755,-1188.4568738,0.00037899,4]
[321406504,1712152243774,-14071.47425368,0.00037899,4]
[321406506,1712152243783,-153.0,0.000379,2]
[321406508,1712152243793,-4179.77068302,0.00038,2]
[321406511,1712152243804,-360.78,0.00038,2]
[321406513,1712152243815,-267.20162747,0.00038,2]
[321406515,1712152243824,-1007.34355908,0.00038256,2]
[321406517,1712152243835,-961.06321539,0.00038256,2]
[321406519,1712152243846,-344.15339474,0.00038256,2]
[321406713,1712153432586,-350.57372479,0.00036814,4]
[321406714,1712153432596,-171.44272834,0.00036815,4]
[321406715,1712153432607,-851.053033,0.0003682,120]
[321406716,1712153432618,-209.599386,0.0003688,2]
[321406717,1712153432628,-3469.30399531,0.00036918,4]
[321406728,1712153437856,-1845.84267767,0.00036918,4]
[321406778,1712153442482,-9944.7844545,0.00036918,4]
[321406779,1712153442492,-3273.30706166,0.00036919,2]
[321406784,1712153442937,-759.08096131,0.00036919,2]
[321406798,1712153446175,-2587.51197703,0.00036919,2]
[321406799,1712153446184,-176.96347108,0.00037851,8]
[321406800,1712153446194,-158.76222105,0.00037951,7]
[321406801,1712153446204,-150.13803642,0.00038206,7]
[321406802,1712153446213,-1500.0,0.00038252,2]
[321406803,1712153446222,-980.85501986,0.0003828,7]
[321406804,1712153446231,-153.0,0.000383,2]
[321406805,1712153446240,-3347.0522613,0.000383,120]
[321406806,1712153446250,-500.0,0.00038309,7]
[321406807,1712153446259,-500.0,0.00038309,7]
[321406808,1712153446269,-500.0,0.00038309,7]
[321406809,1712153446279,-500.0,0.00038309,7]
[321406810,1712153446288,-500.0,0.00038309,7]
[321406811,1712153446297,-500.0,0.00038309,7]
[321406812,1712153446307,-500.0,0.00038309,7]
[321406813,1712153446318,-510.47373738,0.00038309,7]
[321406814,1712153446327,-500.0,0.00038309,7]
[321406815,1712153446336,-500.0,0.00038309,7]
[321406816,1712153446345,-500.0,0.00038309,7]
[321406817,1712153446354,-500.0,0.00038309,7]
[321406818,1712153446363,-2845.31390782,0.00038313,4]
[321406819,1712153446372,-4917.06204123,0.00038314,4]
[321406820,1712153446382,-2633.42118861,0.00038316,4]
[321406821,1712153446391,-740.16,0.00038322,2]
[321406822,1712153446401,-385.0,0.00038326,35]
[321406823,1712153446410,-185.5,0.00038326,35]
[321406824,1712153446418,-249.43221495,0.00038329,4]
[321406825,1712153446428,-594.0,0.00038329,35]
[321406826,1712153446438,-385.0,0.00038336,35]
[321406827,1712153446447,-150.5,0.00038336,35]
[321406828,1712153446455,-594.0,0.00038339,35]
[321406829,1712153446464,-385.0,0.00038346,35]
[321406830,1712153446473,-150.5,0.00038346,35]
[321406831,1712153446482,-150.13803642,0.00038347,7]
[321406832,1712153446491,-594.0,0.00038349,35]
[321406833,1712153446500,-5374.07692581,0.0003835,4]
[321406834,1712153446509,-4210.3358044,0.0003835,4]
[321406835,1712153446519,-2501.58625183,0.0003835,4]
[321406836,1712153446528,-354.30872915,0.0003835,7]
[321406837,1712153446537,-289.58348526,0.0003835,4]
[321406838,1712153446546,-7755.8807425,0.0003835,4]
[321406839,1712153446555,-500.0,0.0003835,15]
[321406840,1712153446564,-262.4015544,0.0003835,15]
[321406841,1712153446573,-359.7906435,0.0003835,15]
[321406842,1712153446582,-500.0,0.0003835,15]
[321406843,1712153446592,-500.0,0.0003835,15]
[321406844,1712153446601,-382.11292277,0.0003835,15]
[321406845,1712153446610,-500.0,0.0003835,15]
[321406846,1712153446620,-500.0,0.0003835,15]
[321406847,1712153446629,-500.0,0.0003835,15]
[321406848,1712153446639,-157038.55327343,0.00038352,2]
[321406849,1712153446648,-151.0,0.00038352,2]
[321406850,1712153446658,-477.65562487,0.00038352,4]
[321406851,1712153446667,-2616.48112317,0.00038353,120]
[321406852,1712153446676,-2638.08916883,0.00038354,2]
[321406853,1712153446686,-156.32317295,0.00038354,4]
[321406854,1712153446696,-520.18596634,0.00038354,2]
[321406855,1712153446704,-154.98450155,0.00038354,4]
[321406856,1712153446713,-2089.81211522,0.00038354,4]
[321406857,1712153446722,-3727.44802182,0.00038354,4]
[321406858,1712153446732,-802.66865404,0.00038354,4]
[321406859,1712153446740,-298.7134847,0.00038354,4]
[321406860,1712153446750,-312.0954563,0.00038354,4]
[321406861,1712153446758,-828.33104674,0.00038354,4]
[321406862,1712153446767,-389.30265262,0.00038354,4]
[321406863,1712153446777,-1893.193387,0.00038354,4]
[321406864,1712153446786,-260.95760401,0.00038354,4]
[321406865,1712153446795,-170.48545562,0.00038354,4]
[321406866,1712153446804,-357.90112473,0.00038354,4]
[321406867,1712153446814,-171.72340381,0.00038354,4]
[321406868,1712153446823,-328.097806,0.00038354,2]
[321406869,1712153446832,-328.097806,0.00038354,2]
[321406870,1712153446842,-223.55015,0.00038354,2]
[321406871,1712153446851,-223.55015,0.00038354,2]
[321406872,1712153446860,-151.0,0.00038354,2]
[321406873,1712153446869,-530.372698,0.00038354,2]
[321406874,1712153446879,-530.372698,0.00038354,2]
[321406875,1712153446888,-151.0,0.00038354,2]
[321406876,1712153446897,-151.0,0.00038354,2]
[321406877,1712153446907,-151.0,0.00038354,2]
[321406878,1712153446916,-1434.05626381,0.00038355,4]
[321406879,1712153446925,-7936.12220561,0.00038355,4]
[321406880,1712153446934,-150.0,0.00038355,2]
[321406881,1712153446945,-449.4769669,0.00038355,15]
[321406882,1712153446954,-500.0,0.00038355,15]
[321406883,1712153446964,-500.0,0.00038355,15]
[321406884,1712153446973,-500.0,0.00038355,7]
[321406885,1712153446982,-35756.08722273,0.00038356,3]
[321406886,1712153446991,-500.0,0.00038356,5]
[321406887,1712153447000,-500.0,0.00038356,5]
[321406888,1712153447012,-500.0,0.00038356,5]
[321406889,1712153447020,-500.0,0.00038356,5]
[321406890,1712153447030,-500.0,0.00038356,5]
[321406891,1712153447038,-500.0,0.00038356,5]
[321406892,1712153447047,-500.0,0.00038356,5]
[321406893,1712153447056,-500.0,0.00038356,5]
[321406894,1712153447066,-500.0,0.00038356,5]
[321406895,1712153447075,-500.0,0.00038356,5]
[321406896,1712153447085,-384.49940603,0.00038356,5]
[321406897,1712153447095,-506.2752695,0.00038356,5]
[321406898,1712153447104,-500.0,0.00038356,5]
[321406899,1712153447114,-506.82235269,0.00038356,5]
[321406900,1712153447123,-500.0,0.00038356,5]
[321406901,1712153447132,-500.0,0.00038356,5]
[321406902,1712153447141,-500.0,0.00038356,5]
[321406903,1712153447150,-500.0,0.00038356,5]
[321406904,1712153447159,-500.0,0.00038356,5]
[321406905,1712153447169,-508.73198636,0.00038356,5]
[321406906,1712153447179,-500.0,0.00038356,5]
[321406907,1712153447191,-515.4676987,0.00038356,5]
[321406908,1712153447200,-500.0,0.00038356,5]
[321406909,1712153447209,-500.0,0.00038356,5]
[321406910,1712153447218,-500.0,0.00038356,5]
[321406911,1712153447226,-500.0,0.00038356,5]
[321406912,1712153447235,-500.0,0.00038356,5]
[321406913,1712153447244,-500.0,0.00038356,5]
[321406914,1712153447252,-271.21245423,0.00038356,5]
[321406915,1712153447262,-502.54055236,0.00038356,5]
[321406916,1712153447272,-500.0,0.00038356,5]
[321406917,1712153447281,-507.38869293,0.00038356,5]
[321406918,1712153447290,-500.0,0.00038356,5]
[321406919,1712153447304,-500.0,0.00038356,5]
[321406920,1712153447313,-163.43004495,0.00038356,5]
[321406921,1712153447322,-504.72189726,0.00038356,5]
[321406922,1712153447331,-500.0,0.00038356,5]
[321406923,1712153447342,-500.0,0.00038356,5]
[321406924,1712153447351,-500.0,0.00038356,5]
[321406925,1712153447360,-500.0,0.00038356,5]
[321406926,1712153447369,-500.0,0.00038356,5]
[321406927,1712153447379,-339.48423333,0.00038356,5]
[321406928,1712153447389,-500.0,0.00038356,5]
[321406929,1712153447398,-500.0,0.00038356,5]
[321406930,1712153447407,-235.14388019,0.00038356,5]
[321406931,1712153447416,-500.0,0.00038356,5]
[321406932,1712153447425,-591.92379515,0.00038356,5]
[321406933,1712153447434,-500.0,0.00038356,5]
[321406934,1712153447445,-509.92846959,0.00038356,5]
[321406935,1712153447454,-500.0,0.00038356,5]
[321406936,1712153447465,-500.0,0.00038356,5]
[321406937,1712153447474,-500.0,0.00038356,5]
[321406938,1712153447483,-500.0,0.00038356,5]
[321406939,1712153447492,-500.0,0.00038356,5]
[321406940,1712153447501,-500.0,0.00038356,5]
[321406941,1712153447510,-500.0,0.00038356,5]
[321406942,1712153447519,-500.0,0.00038356,5]
[321406943,1712153447530,-500.0,0.00038356,5]
[321406944,1712153447539,-500.0,0.00038356,5]
[321406945,1712153447549,-592.4599978,0.00038356,5]
[321406946,1712153447558,-500.0,0.00038356,5]
[321406947,1712153447568,-500.0,0.00038356,5]
[321406948,1712153447577,-608.56991057,0.00038356,5]
[321406949,1712153447586,-500.0,0.00038356,5]
[321406950,1712153447596,-504.73353792,0.00038356,5]
[321406951,1712153447606,-500.0,0.00038356,5]
[321406952,1712153447615,-500.0,0.00038356,5]
[321406953,1712153447625,-500.0,0.00038356,5]
[321406954,1712153447636,-378.93468971,0.00038356,5]
[321406955,1712153447645,-500.0,0.00038356,5]
[321406956,1712153447657,-504.95626151,0.00038356,5]
[321406957,1712153447666,-500.0,0.00038356,5]
[321406958,1712153447676,-500.0,0.00038356,5]
[321406959,1712153447686,-500.0,0.00038356,5]
[321406960,1712153447700,-500.0,0.00038356,5]
[321406961,1712153447816,-500.0,0.00038356,5]
[321406962,1712153447825,-500.0,0.00038356,5]
[321406963,1712153447835,-500.0,0.00038356,5]
[321406964,1712153447844,-500.0,0.00038356,5]
[321406965,1712153447853,-500.0,0.00038356,5]
[321406966,1712153447862,-500.0,0.00038356,5]
[321406967,1712153447871,-500.0,0.00038356,5]
[321406968,1712153447880,-500.0,0.00038356,5]
[321406969,1712153447889,-500.0,0.00038356,5]
[321406970,1712153447898,-500.0,0.00038356,5]
[321406971,1712153447907,-500.0,0.00038356,5]
[321406972,1712153447916,-500.0,0.00038356,5]
[321406973,1712153447926,-500.0,0.00038356,5]
[321406974,1712153447935,-500.0,0.00038356,5]
[321406975,1712153447949,-500.0,0.00038356,5]
[321406976,1712153447958,-500.0,0.00038356,5]
[321406977,1712153447968,-643.4152915,0.00038356,5]
[321406978,1712153447977,-500.0,0.00038356,5]
[321406979,1712153447987,-637.43702449,0.00038356,5]
[321406980,1712153447996,-447.10202741,0.00038356,5]
[321406981,1712153448006,-270.34978087,0.00038356,5]
[321406982,1712153448015,-271.8991831,0.00038356,5]
[321406983,1712153448024,-500.0,0.00038356,5]
[321406984,1712153448033,-500.0,0.00038356,5]
[321406985,1712153448042,-500.0,0.00038356,5]
[321406986,1712153448052,-500.0,0.00038356,5]
[321406987,1712153448061,-500.0,0.00038356,5]
[321406988,1712153448070,-500.0,0.00038356,5]
[321406989,1712153448080,-500.0,0.00038356,5]
[321406990,1712153448090,-500.0,0.00038356,5]
[321406991,1712153448099,-500.0,0.00038356,5]
[321406992,1712153448109,-198.2572391,0.00038356,5]
[321406993,1712153448118,-500.0,0.00038356,5]
[321406994,1712153448128,-500.0,0.00038356,5]
[321406995,1712153448138,-501.31572628,0.00038356,5]
[321406996,1712153448149,-495.88076082,0.00038356,5]
[321406997,1712153448158,-500.0,0.00038356,5]
[321406998,1712153448167,-187.7670803,0.00038356,5]
[321406999,1712153448177,-502.72582236,0.00038356,5]
[321407000,1712153448186,-500.0,0.00038356,5]
[321407001,1712153448198,-500.0,0.00038356,5]
[321407002,1712153448207,-500.0,0.00038356,5]
[321407003,1712153448216,-500.0,0.00038356,5]
[321407004,1712153448225,-500.0,0.00038356,5]
[321407005,1712153448235,-500.0,0.00038356,5]
[321407006,1712153448243,-500.0,0.00038356,5]
[321407007,1712153448253,-500.0,0.00038356,5]
[321407008,1712153448263,-328.097806,0.00038356,2]
[321407009,1712153448272,-328.097806,0.00038356,2]
[321407010,1712153448281,-328.097806,0.00038356,2]
[321407011,1712153448291,-328.097806,0.00038356,2]
[321407012,1712153448301,-328.097806,0.00038356,2]
[321407013,1712153448311,-328.097806,0.00038356,2]
[321407014,1712153448321,-328.097806,0.00038356,2]
[321407015,1712153448330,-328.097806,0.00038356,2]
[321407016,1712153448339,-328.097806,0.00038356,2]
[321407017,1712153448350,-328.097806,0.00038356,2]
[321407018,1712153448360,-328.097806,0.00038356,2]
[321407019,1712153448369,-328.097806,0.00038356,2]
[321407020,1712153448379,-328.097806,0.00038356,2]
[321407021,1712153448389,-328.097806,0.00038356,2]
[321407022,1712153448398,-328.097806,0.00038356,2]
[321407023,1712153448407,-328.097806,0.00038356,2]
[321407024,1712153448416,-223.55015,0.00038356,2]
[321407025,1712153448426,-328.097806,0.00038356,2]
[321407026,1712153448436,-223.55015,0.00038356,2]
[321407027,1712153448447,-328.09781,0.00038356,2]
[321407028,1712153448455,-223.55015,0.00038356,2]
[321407029,1712153448465,-223.55015,0.00038356,2]
[321407030,1712153448474,-223.55015,0.00038356,2]
[321407031,1712153448484,-223.55015,0.00038356,2]
[321407032,1712153448493,-223.55015,0.00038356,2]
[321407033,1712153448504,-223.55015,0.00038356,2]
[321407034,1712153448513,-223.55015,0.00038356,2]
[321407035,1712153448523,-223.55015,0.00038356,2]
[321407036,1712153448533,-223.55015,0.00038356,2]
[321407037,1712153448543,-223.55015,0.00038356,2]
[321407038,1712153448555,-223.55015,0.00038356,2]
[321407039,1712153448565,-223.55015,0.00038356,2]
[321407040,1712153448576,-223.55015,0.00038356,2]
[321407041,1712153448585,-223.55015,0.00038356,2]
[321407042,1712153448594,-223.55015,0.00038356,2]
[321407043,1712153448604,-223.55016,0.00038356,2]
[321407044,1712153448614,-500.0,0.00038356,5]
[321407045,1712153448624,-379.7890331,0.00038356,5]
[321407046,1712153448634,-500.0,0.00038356,5]
[321407047,1712153448643,-257.80429759,0.00038356,5]
[321407048,1712153448653,-151.0,0.00038356,2]
[321407049,1712153448662,-151.0,0.00038356,2]
[321407050,1712153448671,-151.0,0.00038356,2]
[321407051,1712153448681,-298.535327,0.00038356,2]
[321407052,1712153448692,-530.372698,0.00038356,2]
[321407053,1712153448701,-530.372698,0.00038356,2]
[321407054,1712153448710,-530.372698,0.00038356,2]
[321407055,1712153448720,-530.372698,0.00038356,2]
[321407056,1712153448730,-530.372698,0.00038356,2]
[321407057,1712153448739,-500.0,0.00038356,5]
[321407058,1712153448747,-530.372698,0.00038356,2]
[321407059,1712153448757,-530.372698,0.00038356,2]
[321407060,1712153448765,-530.372698,0.00038356,2]
[321407061,1712153448775,-530.372698,0.00038356,2]
[321407062,1712153448784,-530.372698,0.00038356,2]
[321407063,1712153448793,-530.372698,0.00038356,2]
[321407064,1712153448803,-530.372698,0.00038356,2]
[321407065,1712153448812,-530.372698,0.00038356,2]
[321407066,1712153448822,-530.372698,0.00038356,2]
[321407067,1712153448831,-530.372698,0.00038356,2]
[321407068,1712153448840,-530.372698,0.00038356,2]
[321407069,1712153448849,-530.372698,0.00038356,2]
[321407070,1712153448859,-530.372705,0.00038356,2]
[321407071,1712153448868,-500.0,0.00038356,5]
[321407072,1712153448877,-500.0,0.00038356,5]
[321407073,1712153448886,-500.0,0.00038356,5]
[321407074,1712153448895,-500.0,0.00038356,5]
[321407075,1712153448905,-500.0,0.00038356,5]
[321407076,1712153448914,-500.0,0.00038356,5]
[321407077,1712153448924,-336.35193245,0.00038356,5]
[321407078,1712153448932,-500.0,0.00038356,5]
[321407079,1712153448942,-500.0,0.00038356,5]
[321407080,1712153448951,-500.0,0.00038356,5]
[321407081,1712153448961,-500.0,0.00038356,5]
[321407082,1712153448970,-500.0,0.00038356,5]
[321407083,1712153448979,-500.0,0.00038356,5]
[321407084,1712153448988,-500.0,0.00038356,5]
[321407085,1712153448998,-234.15948978,0.00038356,5]
[321407086,1712153449006,-151.0,0.00038356,2]
[321407087,1712153449015,-151.0,0.00038356,2]
[321407088,1712153449025,-151.0,0.00038356,2]
[321407089,1712153449034,-151.0,0.00038356,2]
[321407090,1712153449042,-151.0,0.00038356,2]
[321407091,1712153449051,-151.0,0.00038356,2]
[321407092,1712153449060,-151.0,0.00038356,2]
[321407093,1712153449071,-151.0,0.00038356,2]
[321407094,1712153449083,-500.0,0.00038356,5]
[321407095,1712153449095,-238.534579,0.00038356,2]
[321407096,1712153449107,-500.0,0.00038356,5]
[321407097,1712153449118,-185.28,0.00038356,5]
[321407098,1712153449130,-500.0,0.00038356,5]
[321407099,1712153449141,-221.43036344,0.00038356,5]
[321407100,1712153449151,-500.0,0.00038356,5]
[321407101,1712153449162,-500.0,0.00038356,5]
[321407102,1712153449177,-500.0,0.00038356,5]
[321407103,1712153449189,-500.0,0.00038356,5]
[321407104,1712153449200,-500.0,0.00038356,5]
[321407105,1712153449211,-500.0,0.00038356,5]
[321407106,1712153449222,-425.50540314,0.00038356,5]
[321407107,1712153449233,-500.0,0.00038356,5]
[321407108,1712153449244,-500.0,0.00038356,5]
[321407109,1712153449255,-500.0,0.00038356,5]